Cogmind - Beta 15 @@@ ROGUE MODE // 2025.07.14 @ 18:41:47 Player: Mogwok Wargfriend Result: Destroyed by P-60 Hacker with Shock Rifle Performance ------------- Evolutions (2) 1000 Regions Visited (4) 800 Robots Destroyed (139) 695 Value Destroyed (4528) 4528 Prototype IDs (6) 120 Alien Tech Used (0) 0 Bonus (615) 615 TOTAL SCORE: 7758 Bonus ------- High Alert Combat Kills 463 Follower Combat Kills 14 Entered Garrisons 200 Friendly Fire -62 Cogmind --------- Core Integrity 0/550 Matter 300/300 Energy 251/265 System Corruption 7% Temperature Cool (0) Movement Rolling (120) Ox2 Location -8/Garrison Parts ------- > --- POWER (1) -------- Improved Ion Engine > --- PROPULSION (2) --- Light Treads Armored Wheel > --- UTILITY (6) ------ Large Storage Unit Propulsion Shielding Improved Propulsion Shielding Improved Utility Shielding > --- WEAPON (2) ------- (None) > --- INVENTORY (15) --- Large Storage Unit High-capacity Battery (250) Improved Light Armor Plating Hacking Suite Particle Gun Advanced Beam Cannon Peak State ------------ > --- POWER ------------ Light Nuclear Core > --- PROPULSION ------- Wheel Armored Wheel > --- UTILITY ---------- Improved Heat Sink Large Storage Unit Improved Propulsion Shielding Improved Utility Shielding Improved Light Armor Plating Hacking Suite > --- WEAPON ----------- Pulse Rifle Ion Cannon > --- INVENTORY -------- Light Ion Engine Improved Ion Engine Armored Wheel Armored Wheel Armored Wheel Large Storage Unit High-capacity Battery Improved Propulsion Shielding Light Armor Plating Hacking Suite Beam Rifle Advanced Beam Cannon Ion Cannon Ion Cannon [Rating: 30] Favorites ----------- Power Heavy Ion Engine Engine Heavy Ion Engine Power Core Light Nuclear Core Propulsion Armored Wheel Treads Light Treads Wheel Armored Wheel Flight Unit Cesium-ion Thruster Utility Large Storage Unit Device Improved Heat Sink Storage Large Storage Unit Processor Signal Interpreter Hackware Hacking Suite Protection Hardened Light Armor Plating Weapon Beam Rifle Energy Gun Beam Rifle Energy Cannon Ion Cannon Ballistic Gun Light Assault Rifle Ballistic Cannon Light Cannon Special Weapon Mining Laser Impact Weapon Mace Build | -11 -10 -9 -8 -8 ------- Run | Yrd Mat Mat Mat Gar Slots Evolved 4 | . . 2 2 . Power . | . . . . . Propulsion . | . . . . . Utility 4 | . . 2 2 . Weapon . | . . . . . Parts Attached 91 | 8 13 31 21 18 Power 12 | 1 1 4 2 4 Engine 9 | 1 . 4 2 2 Core 3 | . 1 . . 2 Reactor . | . . . . . Propulsion 19 | 3 3 7 2 4 Treads 1 | . . . . 1 Leg . | . . . . . Wheel 17 | 3 3 7 2 2 Hover . | . . . . . Flight 1 | . . . . 1 Utility 34 | 2 3 12 11 6 Device 11 | 1 1 4 5 . Storage 5 | 1 2 1 1 . Processor 2 | . . 1 1 . Hackware 1 | . . . 1 . Protection 15 | . . 6 3 6 Artifact . | . . . . . Weapon 26 | 2 6 8 6 4 Energy Gun 14 | 2 1 4 4 3 Energy Cannon 4 | . . 1 2 1 Ballistic Gun 2 | . 1 1 . . Ballistic Cannon 4 | . 3 1 . . Launcher . | . . . . . Special Weapon 1 | . 1 . . . Impact Weapon 1 | . . 1 . . Slashing Weapon . | . . . . . Piercing Weapon . | . . . . . Special Melee Weapon . | . . . . . Unidentified Prototypes 3 | . . 2 1 . Corrupted Parts 1 | 1 . . . . System Corruption 1 | 1 . . . . Parts Lost 25 | . 2 7 6 10 Power 4 | . . 1 . 3 Propulsion 6 | . . 3 2 1 Utility 8 | . . 2 3 3 Weapon 7 | . 2 1 1 3 Highest Loss Streak 4 | . 2 1 2 4 To Critical Strikes . | . . . . . Average Backups 12 | 6 9 14 14 13 Power 1 | . 1 1 2 1 Propulsion 2 | 4 2 1 3 2 Utility 3 | . 2 3 3 4 Weapon 5 | 1 3 6 5 4 Tool/Special . | . . . . . Unused Backups 33 | 2 6 16 3 6 Power 5 | . . 5 . . Propulsion 5 | 2 3 . . . Utility 8 | . 2 2 . 4 Weapon 15 | . 1 9 3 2 Tool/Special . | . . . . . Average Slot Usage (%) 98 | . 99 96 99 97 Engine 9 | . 8 10 9 6 Core 1 | . 5 . . 1 Wheel 20 | . 28 20 17 17 Device 11 | . 14 11 14 8 Storage 10 | . 14 11 9 9 Processor 3 | . . . 10 4 Hackware 4 | . . . 8 8 Protection 14 | . . 18 11 22 Energy Gun 10 | . 14 9 9 8 Energy Cannon 6 | . . 5 9 8 Ballistic Cannon 3 | . 10 5 . . Peak Build Rating 30 | 7 11 21 28 30 Average Rating 19 | 5 9 16 26 27 On Entrance 13 | . 7 11 20 27 Naked Turns . | . . . . . Heaviest Build 45 | 15 21 44 45 44 Greatest Support 32 | 26 32 26 24 24 Greatest Overweight (x) 10 | 2 1 4 3 10 Average Overweight (x) . | . . 1 1 1 Largest Inventory Capacity 15 | 8 10 15 15 15 Average Capacity 13 | 7 9 14 15 15 Most Carried 15 | 8 10 15 15 15 Average Carried 13 | 6 9 14 14 13 Final Capacity 15 | 8 10 15 15 15 Final Carried 15 | 8 10 15 15 6 Class Distribution -------------------- 80% | Mutant 19% | Scavenger-Mutant Dominant Class ---------------- Mutant | -10/Materials Scavenger-Mutant | -9/Materials Mutant | -8/Materials Mutant | -8/Garrison Resources | -11 -10 -9 -8 -8 ----------- Run | Yrd Mat Mat Mat Gar Matter Collected 2085 | 287 572 755 235 236 Remotely . | . . . . . Salvage Created 5005 | 241 371 1816 1562 1015 Parts 272 | 20 23 110 64 55 Haulers Intercepted 10 | . 2 6 2 . Recyclers Shooed 1 | . . 1 . . Parts Field Recycled . | . . . . . Retrieved Matter . | . . . . . Parts Self-Destructed . | . . . . . Prevented . | . . . . . Kills | -11 -10 -9 -8 -8 ------- Run | Yrd Mat Mat Mat Gar Combat Hostiles Destroyed 95 | . 12 34 23 26 Melee 1 | . . . . 1 Guns 29 | . 4 10 7 8 Cannons 59 | . 8 22 13 16 Classes Destroyed 15 | 3 5 3 1 3 Worker 7 | 2 . 2 3 . Builder 5 | . 1 4 . . Tunneler 8 | 7 . . 1 . Hauler 10 | . 2 6 2 . Recycler 4 | 1 . 3 . . Mechanic 3 | . 1 . 2 . Operator 1 | . . 1 . . Watcher 6 | . . 3 3 . Swarmer 24 | . 6 11 . 7 Saboteur 1 | . . . . 1 Grunt 45 | . 6 14 17 8 Brawler 2 | . . . 1 1 Sentry 19 | . . 9 5 5 Specialist 1 | . . . . 1 Programmer 3 | . . . . 3 Best Kill Streak 6 | 3 3 6 4 3 Combat Bots Only 5 | . 2 5 4 3 Max Kills in Single Turn 2 | 2 1 2 1 1 Gunslinging . | . . . . . Exploded . | . . . . . Melee 1 | . . . . 1 Uniques/NPCs Destroyed . | . . . . . Combat | -11 -10 -9 -8 -8 -------- Run | Yrd Mat Mat Mat Gar Hostile Shots Fired 530 | . 76 143 136 175 Missed 132 | . 24 34 35 39 Hits 398 | . 52 109 101 136 Melee 8 | . . . . 8 Projectile 390 | . 52 109 101 128 AOE 1 | . . . . 1 Critical Strikes 10 | . 2 3 3 2 Actively Blocked 1 | . . 1 . . Damage Taken 5158 | 22 597 1274 1618 1647 Core 877 | . 126 198 263 290 Absorbed by Shields . | . . . . . Redirected to Shielding 287 | . . 60 22 205 Regen/Repaired (Parts) 440 | . . 126 314 . Core Remaining (%) 66 | 100 49 50 . . Volleys Fired 494 | 36 74 144 107 133 Largest 2 | 1 2 2 2 2 Hottest 125 | 50 100 124 124 125 Shots Fired 907 | 36 144 253 214 260 Gun 479 | 36 89 118 107 129 Cannon 426 | . 53 135 107 131 Launcher . | . . . . . Special 2 | . 2 . . . Kinetic 157 | . 71 86 . . Thermal 738 | 24 73 167 214 260 Explosive . | . . . . . Electromagnetic 12 | 12 . . . . Robot Hit Streak 20 | 20 6 19 15 12 Robot Miss Streak 7 | 2 6 6 7 3 Penetration Max . | . . . . . Secondary Targets . | . . . . . Shots Hit Robots 509 | 32 79 157 141 100 Core Hits 194 | 9 23 64 57 41 Critical Kills 3 | . . 1 1 1 Critical Parts Destroyed . | . . . . . Critical Strikes 36 | 2 6 13 10 5 Burn 30 | 2 5 10 9 4 Meltdown 3 | . . 1 1 1 Blast 3 | . 1 2 . . Melee Attacks 4 | . . 4 . . Impact 4 | . . 4 . . Slashing . | . . . . . Piercing . | . . . . . Sneak Attacks . | . . . . . Combat Hostiles . | . . . . . Follow-up Attacks . | . . . . . Damage Inflicted 9289 | 488 1139 2829 2704 2129 Guns 3892 | 423 526 1093 1044 806 Cannons 5296 | . 613 1700 1660 1323 Explosions 65 | 65 . . . . Melee 36 | . . 36 . . Ramming . | . . . . . Kinetic 1642 | . 713 929 . . Thermal 7450 | 327 426 1864 2704 2129 Explosive . | . . . . . Electromagnetic 161 | 161 . . . . Impact 36 | . . 36 . . Slashing . | . . . . . Piercing . | . . . . . Highest Corruption 7 | 1 1 4 . 7 Average Corruption 2 | 1 1 3 . 4 Corruption Purged . | . . . . . Corruption Blocked . | . . . . . Effects 47 | 2 10 34 . 1 Message Errors 12 | 2 3 7 . . Matter Fused 10 | . 3 7 . . Heat Flow Errors 5 | . . 4 . 1 Energy Discharges 4 | . 2 2 . . Parts Rejected 1 | . . 1 . . Data Loss (minor) 8 | . 1 7 . . Data Loss (major) 1 | . 1 . . . Misfires 1 | . . 1 . . Alerts 1 | . . 1 . . Weapon Failures 4 | . . 4 . . Overload Shots . | . . . . . Overflow Damage 81 | . 16 34 1 30 Projectiles 75 | . 16 28 1 30 Explosions . | . . . . . Melee 6 | . . 6 . . Knockbacks 10 | . 5 5 . . Impact . | . . . . . Kinetic 10 | . 5 5 . . Secondary . | . . . . . Self-Inflicted Damage 23 | 23 . . . . Shots 1 | 1 . . . . Rammed . | . . . . . Targets Rammed . | . . . . . Kicked . | . . . . . Crushed . | . . . . . Highest Temperature 573 | 120 197 374 273 573 Average Temperature 70 | 49 54 56 78 108 Received Heat Transfer 2067 | . 276 501 936 354 Effects 9 | . . . . 9 Shutdowns 3 | . . . . 3 Interference 1 | . . . . 1 Short Circuit 1 | . . . . 1 Damage (minor) 1 | . . . . 1 Damage (major) 2 | . . . . 2 Damage (core) 1 | . . . . 1 Siege Activations . | . . . . . Martial Activations . | . . . . . Shielding Activations . | . . . . . Robots Disrupted . | . . . . . Combat Hostiles . | . . . . . Robots Corrupted 1 | . . 1 . . Combat Hostiles 1 | . . 1 . . Parts Fried 2 | 1 . 1 . . Impact Corruptions 1 | . . 1 . . Robots Melted 7 | 1 1 1 3 1 Combat Hostiles 5 | . . 1 3 1 Parts Melted 28 | 3 3 10 7 5 Heat Transferred 17344 | 1025 1628 4701 5846 4144 Parts Sabotaged 17 | . . . . 17 Parts Stolen . | . . . . . Parts Stripped . | . . . . . Power Chain Reactions 1 | 1 . . . . Alert | -11 -10 -9 -8 -8 ------- Run | Yrd Mat Mat Mat Gar Maximum Alert Level 4 | . . 2 1 4 Low Security (%) 34 | 100 100 25 30 . Level 1 29 | . . 23 69 18 Level 2 24 | . . 51 . 32 Level 3 9 | . . . . 39 Level 4 2 | . . . . 9 Level 5 . | . . . . . High Security . | . . . . . Max Security . | . . . . . Peak Influence 1251 | 10 76 589 391 1251 Initial 245 | . . 15 245 238 Average 338 | 1 26 338 255 684 Influence Increases 3618 | 50 388 1269 768 1143 Destroy 0b10 Robot/C 1940 | . 240 680 460 560 Destroy 0b10 Robot/NC 220 | 50 20 95 55 . Destroy Leader 362 | . 54 178 100 30 Allied During Kill 19 | . . . . 19 Successful Hack 122 | . 42 55 19 6 Disable Machine 120 | . . 90 30 . Anti-Garrison Action 350 | . . . . 350 Destroy Structure 125 | . 2 6 14 103 Lose Combat Pursuer 360 | . 30 165 90 75 Influence Decreases 2377 | 50 350 726 982 269 Entered New Map 488 | . . 23 336 129 Time Decay 1614 | 50 350 628 586 . Lost Part 230 | . . 70 60 100 Lost Ally 40 | . . . . 40 Purge Threat 5 | . . 5 . . Squads Dispatched 6 | . 1 5 . . Investigation 5 | . 1 4 . . Extermination . | . . . . . Reinforcement 1 | . . 1 . . Assault . | . . . . . Garrison . | . . . . . Intercept . | . . . . . Searches Triggered . | . . . . . Construction Impeded . | . . . . . Haulers Reinforced . | . . . . . Active Scanning Responses . | . . . . . Cargo Convoy Interrupts . | . . . . . Stealth | -11 -10 -9 -8 -8 --------- Run | Yrd Mat Mat Mat Gar Distress Signals 11 | . 2 4 5 . Communications Jammed . | . . . . . Distress Signals . | . . . . . Times Spotted 149 | . 20 54 36 39 Peak Tracking Total 7 | . 3 7 7 6 Tactical Retreats 16 | . 2 6 5 3 Traps | -11 -10 -9 -8 -8 ------- Run | Yrd Mat Mat Mat Gar Traps Triggered 19 | . 1 5 . 13 Indirectly . | . . . . . Trap Hack Attempts . | . . . . . Triggered . | . . . . . Disarmed . | . . . . . Reprogrammed . | . . . . . Reused . | . . . . . Traps Extracted . | . . . . . Installed . | . . . . . Triggered . | . . . . . Machines | -11 -10 -9 -8 -8 ---------- Run | Yrd Mat Mat Mat Gar Machines Disabled 13 | . . 6 2 5 Max in Single Turn 2 | . . 1 1 2 Garrison Relay 3 | . . . . 3 Phase Generator 1 | . . . . 1 Machines Repaired . | . . . . . Machines Dismantled . | . . . . . Machines Sabotaged . | . . . . . Overloaded Fab Kills . | . . . . . Hacking | -11 -10 -9 -8 -8 --------- Run | Yrd Mat Mat Mat Gar Machines Accessed 35 | . 9 15 6 5 Terminals 26 | . 8 10 3 5 Fabricators . | . . . . . Repair Stations 3 | . . 2 1 . Recycling Units 3 | . 1 2 . . Scanalyzers 2 | . . 1 1 . Garrison Access 1 | . . . 1 . Total Hacks 114 | . 29 48 25 12 Successful 64 | . 15 24 22 3 Failed 49 | . 13 24 3 9 Catastrophic 9 | . 2 3 1 3 Database Lockouts 1 | . 1 . . . Manual 66 | . 21 36 9 . Terminals 81 | . 27 35 7 12 Fabricators . | . . . . . Repair Stations 12 | . . 4 8 . Recycling Units 9 | . 2 7 . . Scanalyzers 11 | . . 2 9 . Garrison Access 1 | . . . 1 . Terminal Hacks 20 | . 7 8 2 3 Robot Analysis 6 | . 1 4 1 . Prototype ID Bank 2 | . 2 . . . Open Door 1 | . . . . 1 Branch Access Points 1 | . 1 . . . Emergency Access Points 1 | . . . . 1 Terminal Index 2 | . 1 1 . . Alert Level 1 | . . . 1 . Unreport Threat 1 | . . 1 . . Locate Traps 3 | . 2 1 . . Recall Reinforcements 1 | . . 1 . . Patrol Navigation 1 | . . . . 1 Fabricator Hacks . | . . . . . Repair Station Hacks 11 | . . 4 7 . Scan Component 6 | . . 2 4 . Repair 5 | . . 2 3 . Recycling Unit Hacks 4 | . 1 3 . . Report Inventory 3 | . 1 2 . . Retrieve Components 1 | . . 1 . . Scanalyzer 10 | . . 1 9 . Insert Component 6 | . . 1 5 . Analyze 4 | . . . 4 . Garrison Access Hacks 1 | . . . 1 . Unlock Access 1 | . . . 1 . Unauthorized Hacks 18 | . 7 8 3 . Terminals 15 | . 6 6 3 . Assimilate 1 | . . 1 . . Botnet 11 | . 5 4 2 . Operators 3 | . 1 1 1 . Fabricators . | . . . . . Repair Stations . | . . . . . Recycling Units 3 | . 1 2 . . Reject 3 | . 1 2 . . Scanalyzers . | . . . . . Garrison Access . | . . . . . Data Cores Recovered . | . . . . . Used . | . . . . . Hacking Detections 34 | . 9 15 6 4 Full Trace Events 3 | . . 2 . 1 Feedback Events . | . . . . . Feedback Blocked . | . . . . . Robot Schematics Acquired . | . . . . . Robots Built . | . . . . . Authchips . | . . . . . Time . | . . . . . Total Robot Build Rating . | . . . . . Part Schematics Acquired 4 | . . . 4 . Parts Built . | . . . . . Authchips . | . . . . . Time . | . . . . . Total Part Build Rating . | . . . . . Parts Repaired 5 | . . 2 3 . Time 147 | . . 45 102 . Parts Recycled . | . . . . . Recycled Matter . | . . . . . Retrieved Matter . | . . . . . Retrieved Components 3 | . . 3 . . Parts Scanalyzed 5 | . . 1 4 . Part Schematics Acquired 4 | . . . 4 . Parts Damaged 1 | . . . 1 . Bothacking | -11 -10 -9 -8 -8 ------------ Run | Yrd Mat Mat Mat Gar Used RIF Installer . | . . . . . Robots Hacked . | . . . . . Non-combat . | . . . . . Combat . | . . . . . Robot Hacks Applied . | . . . . . Relay Couplers Released 14 | . . . . 14 Machine Destruction 10 | . . . . 10 Programmers 4 | . . . . 4 Fabnet Peak Effective % . | . . . . . Robots Rewired . | . . . . . Allies Hacked . | . . . . . Hacks Repelled . | . . . . . Allies | -11 -10 -9 -8 -8 -------- Run | Yrd Mat Mat Mat Gar Total Allies 2 | . . . . 2 Largest Group 2 | . . . . 2 Highest-Rated Group 40 | . . . . 40 Highest-Rated Ally 20 | . . . . 20 Total Orders . | . . . . . Ally Attacks 7 | . . . . 7 Total Damage 96 | . . . . 96 Kills 2 | . . . . 2 Allies Corrupted 1 | . . . . 1 Allies Melted . | . . . . . Intel | -11 -10 -9 -8 -8 ------- Run | Yrd Mat Mat Mat Gar Active Infowar (turns) 654 | 6 279 . 369 . Sensors 369 | . . . 369 . Seismic 285 | 6 279 . . . Robot Analysis Total 6 | . 1 4 1 . Derelict Logs Recovered . | . . . . . Drone Launches . | . . . . . Drone Recoveries . | . . . . . Exploration | -11 -10 -9 -8 -8 ------------- Run | Yrd Mat Mat Mat Gar Turns Passed 7249 | 243 1135 2342 1826 1703 Spaces Moved 5010 | 173 922 1610 1227 1078 Core 17 | 15 . . . 2 Treads . | . . . . . Legs . | . . . . . Wheels 4993 | 158 922 1610 1227 1076 Hover . | . . . . . Flight . | . . . . . Fastest Speed 50 | 50 90 90 100 100 Average Speed 99 | 87 92 101 102 102 Slowest Speed 550 | 150 100 140 135 550 Overloaded Moves . | . . . . . Propulsion Burnouts . | . . . . . Robots Hopped . | . . . . . Potential Cave-ins . | . . . . . Cave-ins Triggered . | . . . . . Exploration Rate (%) 67 | 4 98 99 53 82 Regions Visited 4 Branch Regions . Pre-discovered Areas . | . . . . . Known Exits Taken 2 | . . 1 1 . Unknown Exits Taken 2 | 1 1 . . . Scrap Searched . | . . . . . Spaces Dug 4 | . 2 2 . . Terrain Destroyed 88 | 2 2 2 9 73 Melee 2 | . . 2 . . Projectile 11 | . 2 . 9 . AOE 75 | 2 . . . 73 Terrain Rammed . | . . . . . Walls Destroyed . | . . . . . Machines Disabled . | . . . . . Actions | -11 -10 -9 -8 -8 --------- Run | Yrd Mat Mat Mat Gar Total 6360 | 228 1067 2070 1582 1413 Wait 478 | . 30 191 197 60 Move 5006 | 172 921 1609 1226 1078 Hop . | . . . . . Pick Up 80 | 10 12 38 13 7 Fast Attach 39 | 6 2 14 7 10 Attach 33 | 1 2 7 8 15 Detach 6 | . . 2 2 2 Swap 37 | 1 10 16 9 1 Drop 79 | 2 16 45 13 3 Fire 494 | 36 74 144 107 133 Melee 4 | . . 4 . . Ram . | . . . . . Kick . | . . . . . Crush . | . . . . . Escape Stasis 104 | . . . . 104 Rewire . | . . . . . Trap . | . . . . . Miscellaneous . | . . . . . Route ------- -11/Scrapyard -10/Materials (discovered 4 exits: *Mat x3 / *Min) -9/Materials (discovered 4 exits: *Mat x3 / [*Min]) -8/Materials (discovered 2 exits: [*Fac] / Gar) -8/Garrison (discovered 3 exits: *Mat x3) History --------- Turn | Location | Event 5 | -11/Scrapyard | Discovered new exit (range 15) 244 | -11/Scrapyard | Entered Materials 307 | -10/Materials | Discovered new exit (range 12) 311 | -10/Materials | Build established: Mutant 517 | -10/Materials | Discovered new exit (range 16) 619 | -10/Materials | Central database locked down 809 | -10/Materials | Discovered new exit (range 12) 839 | -10/Materials | Identified exit to Mines 1327 | -10/Materials | Core integrity fell below 50% 1379 | -10/Materials | Entered another Materials area 1379 | -9/Materials | Evolved 2 slots: Utility x2 1738 | -9/Materials | Repaired Med. Laser 1836 | -9/Materials | Discovered new exit (range 10) 2004 | -9/Materials | Build established: Scavenger-Mutant 2719 | -9/Materials | Discovered new exit (range 12) 2914 | -9/Materials | Discovered new exit (range 13) 3113 | -9/Materials | Discovered new exit (range 11) 3269 | -9/Materials | Build established: Mutant 3485 | -9/Materials | Repaired Arm. Wheel 3720 | -9/Materials | Identified exit to Materials 3721 | -9/Materials | Entered another Materials area 3721 | -8/Materials | Evolved 2 slots: Utility x2 4725 | -8/Materials | Repaired Ion Cannon 4757 | -8/Materials | Repaired Arm. Wheel 4789 | -8/Materials | Repaired Hrd. Light Armor Plating 4845 | -8/Materials | Identified exit to Garrison 4887 | -8/Materials | Discovered new exit (range 7) 5547 | -8/Materials | Entered Garrison 5663 | -8/Garrison | Triggered checkpoint 5713 | -8/Garrison | Garrison Relay disabled 5808 | -8/Garrison | Triggered checkpoint 6001 | -8/Garrison | Triggered checkpoint 6065 | -8/Garrison | Core integrity fell below 50% 6233 | -8/Garrison | Triggered checkpoint 6289 | -8/Garrison | Discovered new exit (range 13) 6319 | -8/Garrison | Identified exit to Materials 6419 | -8/Garrison | Rescued a captive Derelict 6429 | -8/Garrison | Rescued a captive Derelict 6574 | -8/Garrison | Triggered checkpoint 6619 | -8/Garrison | Lost 4 parts (1p1n2w) 6761 | -8/Garrison | Triggered checkpoint 6791 | -8/Garrison | Garrison Relay disabled 6850 | -8/Garrison | Discovered exit to Materials (range 13) 6982 | -8/Garrison | Discovered exit to Materials (range 9) 7075 | -8/Garrison | Triggered checkpoint 7086 | -8/Garrison | Garrison Relay disabled 7144 | -8/Garrison | Phase Generator disabled 7194 | -8/Garrison | Core integrity fell below 20% 7250 | -8/Garrison | Destroyed by P-60 Hacker with Shock Rifle Last Messages --------------- 07219_ Lgt. Nuclear Core blown off. 07219_ Broken Particle Gun blown off. 07219_ E-15 Imp destroyed. 07220_ Arm. Wheel blown off. 07220_ Arm. Wheel crushed and broken. 07220_ Hacking Suite blown off. 07220_ E-15 Imp destroyed. 07221_ Acquired Cesium-ion Thruster. 07221_ Cesium-ion Thruster blown off. 07221_ E-15 Imp destroyed. 07222_ Acquired Cesium-ion Thruster. 07225_ System corrupted: Heat flow error (+267). 07225_ Cesium-ion Thruster blown off. 07225_ E-15 Imp destroyed. 07235_ Acquired Arm. Wheel. 07237_ Acquired Broken Particle Gun. 07239_ Acquired 33 matter. 07241_ Acquired 27 matter. 07243_ Acquired Lgt. Treads. 07245_ Acquired 10 matter. Map ----- +----------------------------------------------------+ | !%== #???????????????????????????? | | =[% #???????####????????????????? | | [% #?????### ###??????????????? | | # ## ########## #?????#"# #??????????????? | | # ## #???????# #?????#" #??????????????? | | ####### #???????# #?????#"! #??????????????? | | ??????# #???????# #?????#!!! #??????????????? | | ??????# #???????# #?????#"# #??????????????? | | ??????# #???????# #???????# ###???####???????? | | ??????# ######### ######### #######!!##??????? | | ??????# # ##^ !#??????? | | ??????# !#??????? | | ??????####### #### !%##################!!##??????? | | ????????????# #??# =#????????????????####???????? | | ????????????# #??# #???????????????#???????????? | | ????????????# #??# #????????????## #???????????? | | ????????????# #??# % #???????????? # ###?????????? | | ?????????#??# #??# #??????????? ??????????? | | ?????????? ## #??# #??????????? #???????????? | | ?????????#? # ?# #?????????? #???????????? | | ?????## ##"?# # #?????????? #???????????? | | ?????# # # # #????????? #???????????? | | ?????#" # #????????? #???????????? | | ?????# # #???????? #???????????? | | ????? # #########/= #???????????? | | ?????# ! p @=!!!!= #???????????? | | ????? # =#######%##= ###???????????? | | ?????? # #?????#%#???###?????????????? | | ??????# ## #?????# #???????????????????? | | ?????? ## #?????#=#???????????????????? | | ??????# # ## ?# #?????+=+???????????????????? | | ???????# ## ??# #????##]##??????????????????? | | ???????#?? # #??# ?????#=#???????????????????? | | ?????????##?# ??+ < ???? ???????????????????? | | ????????????###??# ????###???????????????????? | | ?????????????????#######?????????????????????????? | | ?????????????????????????????????????????????????? | | ?????????????????????????????????????????????????? | | ?????????????????????????????????????????????????? | | ?????????????????????????????????????????????????? | | ?????????????????????????????????????????????????? | | ?????????????????????????????????????????????????? | | ?????????????????????????????????????????????????? | | ?????????????????????????????????????????????????? | | ?????????????????????????????????????????????????? | | ?????????????????????????????????????????????????? | | | | | | | | | +----------------------------------------------------+ Best States ------------- Heat Dissipation 59 Coolant Potential 50 Energy Generation 14 Energy Capacity 280 Matter Stores 300 Matter Capacity 300 Sight Range 16 Robot Scan Range 14 Terrain Scan Density 10 Armor Coverage 300 Power Shielding 33 Propulsion Shielding 66 Utility Shielding 66 Weapon Shielding 33 Evasion (%) 50 Target Analysis 5 Offensive Hacking 10 Item Schematics ----------------- Adv. Beam Cannon | -8/Materials | Scanalyzed Hacking Suite | -8/Materials | Scanalyzed Arm. Wheel | -8/Materials | Scanalyzed Imp. Propulsion Shielding | -8/Materials | Scanalyzed Robot Schematics ------------------ None Fabricated ------------ Nothing Repaired ---------- Med. Laser | 10% | -9/Materials Arm. Wheel | 37% | -9/Materials Ion Cannon | 4% | -8/Materials Arm. Wheel | 21% | -8/Materials Hrd. Light Armor Plating | 30% | -8/Materials Alien Tech Used ----------------- None Achievements -------------- None Challenges ------------ None Game ------ Seed CargoBattleBoomstick Manual? 0 Play Time 01:06:59 Cumulative 254.4 hours Start 2025.07.14 @ 16:54:36 End 2025.07.14 @ 18:41:47 Sessions 1 Manual Loads 0 Difficulty Rogue Special Mode None Game No. 238 Rogue 238 Adventurer 0 Explorer 0 Win Type - Total 1 Types 1/0/0/0/0/0/0/0/0/0 Lore% 62 Gallery% 61 Achievement% 48 Wizard Run 0 Options --------- Layout 2 ASCII 1 Keyboard 1 Movement Numpad Keybinds 0 Fullscreen 2 Font 32/TamsynBold Map View 50x44 Zoom Use 0% Tactical HUD 1 Map Filters NONE Filters NONE Steam 1 RUN: 0d31913c-0147-4d8e-a11d-0b9198fc85d5